Cogmind - Beta 9.4 *** ADVENTURER MODE // 2020.08.06 @ 21:42:25 Player: Scyralis Result: Self-destructed Performance ------------- Evolutions (1) 500 Regions Visited (2) 400 Robots Destroyed (8) 40 Value Destroyed (63) 63 Prototype IDs (0) 0 Alien Tech Used (0) 0 Bonus (0) 0 TOTAL SCORE: 1003 Bonus ------- None Cogmind --------- Core Integrity 340/400 Matter 300/300 Energy 100/100 System Corruption 0% Temperature Cool (0) Movement Hovering (80) Location -9/Materials Parts ------- > --- POWER (1) -------- (None) > --- PROPULSION (2) --- Backup Propulsion I > --- UTILITY (4) ------ Cooling System Visual Processing Unit Visual Processing Unit > --- WEAPON (2) ------- (None) > --- INVENTORY (4) ---- Light Ion Engine Datajack Peak State ------------ > --- POWER ------------ Light Ion Engine > --- PROPULSION ------- Backup Propulsion I Backup Propulsion I > --- UTILITY ---------- Cooling System Weight Redist. System Visual Processing Unit Visual Processing Unit > --- WEAPON ----------- Spread Laser > --- INVENTORY -------- Datajack [Rating: 13] Favorites ----------- Power Light Ion Engine Engine Light Ion Engine Propulsion Backup Propulsion I Wheel Compact Wheel Hover Unit Backup Propulsion I Utility Visual Processing Unit Device Cooling System Processor Visual Processing Unit Weapon EM Pulse Gun Energy Gun EM Pulse Gun Build | -11 -10 -9 ------- Run | Scr Mat Mat Slots Evolved 2 | . . 2 Power . | . . . Propulsion . | . . . Utility 2 | . . 2 Weapon . | . . . Parts Attached 11 | 5 4 2 Power 1 | 1 . . Engine 1 | 1 . . Core . | . . . Reactor . | . . . Propulsion 2 | 2 . . Treads . | . . . Leg . | . . . Wheel 2 | 2 . . Hover . | . . . Flight . | . . . Utility 5 | . 3 2 Device 2 | . . 2 Storage . | . . . Processor 3 | . 3 . Hackware . | . . . Protection . | . . . Artifact . | . . . Weapon 3 | 2 1 . Energy Gun 3 | 2 1 . Energy Cannon . | . . . Ballistic Gun . | . . . Ballistic Cannon . | . . . Launcher . | . . . Special Weapon . | . . . Impact Weapon . | . . . Slashing Weapon . | . . . Piercing Weapon . | . . . Special Melee Weapon . | . . . Unidentified Prototypes . | . . . Parts Lost 4 | . . 4 Power 1 | . . 1 Propulsion 1 | . . 1 Utility 1 | . . 1 Weapon 1 | . . 1 Highest Loss Streak 3 | . . 3 Average Slot Usage (%) 83 | . 82 83 Engine 12 | . 14 11 Wheel 4 | . 7 . Hover 20 | . 20 21 Device 10 | . . 22 Processor 18 | . 15 22 Energy Gun 16 | . 23 7 Naked Turns . | . . . Heaviest Build 8 | 7 7 8 Greatest Support 32 | 32 32 18 Greatest Overweight (x) . | . . . Average Overweight (x) . | . . . Largest Inventory Capacity 4 | 4 4 4 Average Capacity 4 | 4 4 4 Most Carried 4 | 4 4 3 Average Carried 1 | . . 1 Final Capacity 4 | 4 4 4 Final Carried 3 | . 3 2 Class Distribution -------------------- 100% | Mutant Dominant Class ---------------- Mutant | -10/Materials Mutant | -9/Materials Resources | -11 -10 -9 ----------- Run | Scr Mat Mat Matter Collected 289 | 161 112 16 Remotely . | . . . Salvage Created 161 | . 126 35 Parts 16 | . 12 4 Haulers Intercepted 1 | . 1 . Recyclers Shooed . | . . . Parts Field Recycled . | . . . Retrieved Matter . | . . . Parts Self-Destructed . | . . . Prevented . | . . . Kills | -11 -10 -9 ------- Run | Scr Mat Mat Combat Hostiles Destroyed 2 | . . 2 Melee 1 | . . 1 Guns 1 | . . 1 Classes Destroyed 5 | . 4 1 Worker 2 | . 1 1 Tunneler 1 | . 1 . Hauler 1 | . 1 . Watcher 2 | . 2 . Swarmer 2 | . . 2 Best Kill Streak 4 | . 4 1 Combat Bots Only 1 | . . 1 Max Kills in Single Turn 1 | . 1 1 Gunslinging . | . . . Exploded . | . . . Melee 1 | . . 1 Uniques/NPCs Destroyed . | . . . Combat | -11 -10 -9 -------- Run | Scr Mat Mat Damage Taken 219 | . . 219 Core 60 | . . 60 Absorbed by Shields . | . . . Core Remaining (%) 100 | 100 100 . Volleys Fired 14 | . 8 6 Largest 2 | . 2 1 Hottest 90 | . 90 65 Shots Fired 22 | . 16 6 Gun 22 | . 16 6 Cannon . | . . . Launcher . | . . . Special . | . . . Kinetic . | . . . Thermal 14 | . 8 6 Explosive . | . . . Electromagnetic 8 | . 8 . Robot Hit Streak 6 | . 5 6 Robot Miss Streak 7 | . 1 7 Penetration Max . | . . . Secondary Targets . | . . . Shots Hit Robots 14 | . 9 5 Core Hits 13 | . 5 8 Critical Hits . | . . . Critical Kills . | . . . Critical Parts Destroyed . | . . . Melee Attacks . | . . . Impact . | . . . Slashing . | . . . Piercing . | . . . Sneak Attacks . | . . . Combat Hostiles . | . . . Follow-up Attacks . | . . . Damage Inflicted 202 | . 143 59 Guns 190 | . 143 47 Cannons . | . . . Explosions . | . . . Melee . | . . . Ramming 12 | . . 12 Kinetic . | . . . Thermal 83 | . 36 47 Explosive . | . . . Electromagnetic 107 | . 107 . Impact . | . . . Slashing . | . . . Piercing . | . . . Highest Corruption . | . . . Average Corruption . | . . . Corruption Purged . | . . . Overload Shots . | . . . Overflow Damage . | . . . Projectiles . | . . . Explosions . | . . . Melee . | . . . Knockbacks . | . . . Impact . | . . . Kinetic . | . . . Secondary . | . . . Self-Inflicted Damage 5 | . . 5 Shots . | . . . Rammed 6 | . . 6 Targets Rammed 6 | . . 6 Kicked . | . . . Crushed . | . . . Highest Temperature 72 | . 72 . Average Temperature 33 | . 33 . Received Heat Transfer 72 | . . 72 Siege Activations . | . . . Robots Corrupted . | . . . Combat Hostiles . | . . . Parts Fried 1 | . 1 . Impact Corruptions . | . . . Robots Melted . | . . . Combat Hostiles . | . . . Parts Melted . | . . . Heat Transferred 166 | . 111 55 Parts Sabotaged . | . . . Parts Stolen . | . . . Parts Stripped . | . . . Power Chain Reactions . | . . . Missiles Intercepted . | . . . Alert | -11 -10 -9 ------- Run | Scr Mat Mat Peak Influence 134 | . 134 113 Average Influence 68 | . 87 72 Maximum Alert Level . | . . . Low Security (%) 100 | 100 100 100 Level 1 . | . . . Level 2 . | . . . Level 3 . | . . . Level 4 . | . . . Level 5 . | . . . High Security . | . . . Max Security . | . . . Squads Dispatched 2 | . . 2 Investigation 1 | . . 1 Extermination . | . . . Reinforcement 1 | . . 1 Assault . | . . . Garrison . | . . . Intercept . | . . . Construction Impeded . | . . . Haulers Reinforced . | . . . Stealth | -11 -10 -9 --------- Run | Scr Mat Mat Distress Signals 2 | . . 2 Communications Jammed . | . . . Distress Signals . | . . . Times Spotted 19 | . 3 16 Peak Tracking Total 10 | . 2 10 Tactical Retreats 2 | . . 2 Traps | -11 -10 -9 ------- Run | Scr Mat Mat Traps Triggered 1 | . . 1 Indirectly . | . . . Trap Hack Attempts . | . . . Triggered . | . . . Disarmed . | . . . Reprogrammed . | . . . Reused . | . . . Traps Extracted . | . . . Installed . | . . . Triggered . | . . . Machines | -11 -10 -9 ---------- Run | Scr Mat Mat Machines Disabled . | . . . Max in Single Turn . | . . . Machines Sabotaged . | . . . Garrisons Compromised . | . . . Overloaded Fab Kills . | . . . Fab Network Shutdowns . | . . . Hacking | -11 -10 -9 --------- Run | Scr Mat Mat Machines Accessed 4 | . 3 1 Terminals 2 | . 2 . Fabricators . | . . . Repair Stations 2 | . 1 1 Recycling Units . | . . . Scanalyzers . | . . . Garrison Access . | . . . Total Hacks 7 | . 6 1 Successful 5 | . 4 1 Failed 2 | . 2 . Catastrophic . | . . . Database Lockouts . | . . . Manual 4 | . 4 . Terminals 4 | . 4 . Fabricators . | . . . Repair Stations 3 | . 2 1 Recycling Units . | . . . Scanalyzers . | . . . Garrison Access . | . . . Terminal Hacks 3 | . 3 . Robot Analysis 3 | . 3 . Fabricator Hacks . | . . . Repair Station Hacks 2 | . 1 1 Scan Component 1 | . . 1 Refit 1 | . 1 . Recycling Unit Hacks . | . . . Scanalyzer . | . . . Garrison Access Hacks . | . . . Unauthorized Hacks . | . . . Terminals . | . . . Fabricators . | . . . Repair Stations . | . . . Recycling Units . | . . . Scanalyzers . | . . . Garrison Access . | . . . Data Cores Recovered . | . . . Used . | . . . Hacking Detections 2 | . 2 . Full Trace Events . | . . . Feedback Events . | . . . Feedback Blocked . | . . . Robot Schematics Acquired . | . . . Robots Built . | . . . Matter . | . . . Time . | . . . Total Robot Build Rating . | . . . Part Schematics Acquired . | . . . Parts Built . | . . . Matter . | . . . Time . | . . . Total Part Build Rating . | . . . Parts Repaired . | . . . Time . | . . . Parts Recycled . | . . . Recycled Matter . | . . . Retrieved Matter . | . . . Retrieved Components . | . . . Parts Scanalyzed . | . . . Part Schematics Acquired . | . . . Parts Damaged . | . . . Bothacking | -11 -10 -9 ------------ Run | Scr Mat Mat Used RIF Installer . | . . . Robots Hacked . | . . . Non-combat . | . . . Combat . | . . . Robot Hacks Applied . | . . . Relay Couplers Released . | . . . Robots Rewired . | . . . Allies Hacked . | . . . Hacks Repelled . | . . . Allies | -11 -10 -9 -------- Run | Scr Mat Mat Total Allies . | . . . Largest Group . | . . . Highest-Rated Group . | . . . Highest-Rated Ally . | . . . Total Orders . | . . . Ally Attacks . | . . . Total Damage . | . . . Kills . | . . . Allies Corrupted . | . . . Allies Melted . | . . . Intel | -11 -10 -9 ------- Run | Scr Mat Mat Robot Analysis Total 3 | . 3 . Derelict Logs Recovered . | . . . Drone Launches . | . . . Drone Recoveries . | . . . Exploration | -11 -10 -9 ------------- Run | Scr Mat Mat Turns Passed 323 | 48 141 134 Spaces Moved 310 | 39 129 142 Core 8 | 8 . . Treads . | . . . Legs . | . . . Wheels 55 | 31 24 . Hover 247 | . 105 142 Flight . | . . . Fastest Speed 50 | 50 76 76 Average Speed 79 | 89 80 76 Slowest Speed 100 | 100 100 80 Overloaded Moves . | . . . Propulsion Burnouts . | . . . Robots Hopped . | . . . Cave-ins Triggered . | . . . Exploration Rate (%) 17 | 3 30 18 Regions Visited 2 Branch Regions . Pre-discovered Areas . | . . . Known Exits Taken . | . . . Unknown Exits Taken 2 | 1 1 . Scrap Searched . | . . . Spaces Dug . | . . . Terrain Destroyed . | . . . Melee . | . . . Projectile . | . . . AOE . | . . . Actions | -11 -10 -9 --------- Run | Scr Mat Mat Total 364 | 52 151 161 Wait 4 | . . 4 Move 308 | 38 128 142 Hop . | . . . Pick Up 15 | 7 7 1 Fast Attach . | . . . Attach 10 | 5 3 2 Detach . | . . . Swap 1 | . 1 . Drop 6 | 2 4 . Fire 14 | . 8 6 Melee . | . . . Ram 6 | . . 6 Kick . | . . . Crush . | . . . Escape Stasis . | . . . Rewire . | . . . Trap . | . . . Miscellaneous . | . . . Route ------- -11/Scrapyard -10/Materials -9/Materials History --------- Turn | Location | Event 6 | -11/Scrapyard | Discovered new exit (range 16) 49 | -11/Scrapyard | Entered Materials 146 | -10/Materials | Discovered new exit (range 19) 190 | -10/Materials | Entered another Materials area 190 | -9/Materials | Evolved 2 slots: Utility x2 310 | -9/Materials | Build established: Mutant 324 | -9/Materials | Self-destructed Last Messages --------------- 00281_ Spread Laser destroyed. 00295_ Slammed into S-10 Pest. 00296_ Destabilizing: Short circuit. 00296_ Broken Cooling System permanently disabled. 00297_ Slammed into S-10 Pest. 00298_ S-10 Pest destroyed. 00299_ Acquired 7 matter. 00311_ W-16 Scout distress signal alerts nearby ally. 00314_ Slammed into K-01 Serf. 00314_ Destabilizing: System interference. 00314_ Visual Processing Unit temporarily disabled. 00314_ Backup Propulsion I destroyed. 00316_ Slammed into T-07 Excavator. 00316_ Destabilizing: Core damaged (-8). 00319_ Triggered Alarm Trap. 00319_ An alarm sounds. 00319_ ALERT: Alarm triggered, dispatching investigation squad. 00320_ Lgt. Ion Engine destroyed. 00323_ Weight Redist. System destroyed. 00323_ S-10 Pest destroyed. Map ----- +----------------------------------------------------+ | ?????????????????????????????????????????????????? | | ?????????????????????????????????????????????????? | | ?????????????????????????????????????????????????? | | ?????????????????????????????????????????????????? | | ?????????????????????????????????????????????????? | | ?????????????????????????????????????????????????? | | ?????????????????????????????????????????????????? | | ?????????????????????????????????????????????????? | | ??????????????????????? ????????????????????????? | | ?????????????????????# g????????????????????????? | | ?????????????????????# ????????????????????????? | | ?????????????????????# ""??????????????????????? | | ?????????????????????# ""??????????????????????? | | ????????????????????? ""??????????????????????? | | ?????????????????????? ??????????????????????? | | ?????????????????????? ??????????????????????? | | ?????????????????????? ??????????????????????? | | ?????????????????#????# #??????????????????????? | | ????????????????? ????# #??????????????????????? | | ????????????????? ????# #??????????????????????? | | ????????????????" "???+ +??????????????????????? | | ????????????????" "???# #??????????????????????? | | ????????????????" "???#g g#??????????????????????? | | ???????????????? ???# #??????????????????????? | | ???????????????? ???# b#??????????????????????? | | ???????????????? ???# @#??????????????????????? | | ????????????????#+#???# #??#################???? | | ????????????????# #???# #??# #???? | | ????????????????# #???# #??# #???? | | ???????#????????# #???# #??# ]]] """ #???? | | ?# ##### ######## #???# = #??# ]]] "R" #???? | | ?# #???# %*#??# ]]] " " #???? | | ?# #???# #??# #???? | | ?# % % #####Y #??# #???? | | ?# Y%#### #???? | | ????????######### #####w % #??? | | ????????????????# #???# #??"" | | ????????????????# #???# #??"" | | ????????????????# #???########## """ """ #??"" | | ????????????????# #????????????# """ """ #? | | ????????????????# #????????????# """ """ #? | | ????????????????# #????????????# #? | | ????????????????# #?????######## ##/## | | ????????????????# #?????# # """ """ | | ????????????????# #?????# """ # """ """ | | ????????????????# #######% """ + """ """ | | ????????????????# /[ """ # ## | | ????????????????######### # ## | | ????????????????????????# ! # """ """ # | | ????????????????????????######## """ """ # | +----------------------------------------------------+ Best States ------------- Heat Dissipation 50 Energy Generation 10 Energy Capacity 125 Matter Stores 300 Matter Capacity 300 Sight Range 20 Terrain Scan Density 10 Additional Mass Support 6 Resistance: KI 20 Resistance: TH 20 Resistance: EX 20 Resistance: EM 20 Resistance: I 20 Resistance: S 20 Resistance: P 20 Evasion (%) 50 Offensive Hacking 10 Item Schematics ----------------- None Robot Schematics ------------------ None Fabricated ------------ Nothing Alien Tech Used ----------------- None Achievements -------------- None Challenges ------------ None Game ------ Seed NovaLightpackRail Manual? 0 Play Time 00:04:25 Cumulative 239.8 hours Start 2020.08.06 @ 21:39:14 End 2020.08.06 @ 21:42:25 Sessions 1 Manual Loads 0 Difficulty Adventurer Special Mode None Game No. 99 Rogue 1 Adventurer 98 Explorer 0 Win Type - Total 1 Types 1/0/0/0/0/0/0 Lore% 33 Gallery% 59 Achievement% 44 Wizard Run 0 Options --------- ASCII 0 Keyboard 0 Movement Numpad Keybinds 0 Fullscreen 0 Font 12/Smallcaps Map View 83x54 Tactical HUD 1 Map Filters NONE Filters NONE Steam X RUN: 57b10759-e863-481f-9374-996e79d2f3c7